fUST/lending_fUST_20260610
["ID","MTS","AMOUNT","RATE_DAILY","PERIOD"]
[424706740,1781065846000,-7.06804941,0.00014098,2]
[424706739,1781065846000,-476.60650402,0.00014098,2]
[424706748,1781065847000,-1419.65355049,0.00016314,2]
[424706745,1781065847000,-250.41624816,0.0001548,2]
[424706746,1781065847000,-481.81250684,0.00016058,7]
[424706743,1781065847000,-64.85587105,0.00014108,2]
[424706742,1781065847000,-86.14412895,0.00014108,2]
[424706770,1781066298000,-1077.3092296,0.00016369,2]
[424706771,1781066298000,-481.81250683,0.00016379,7]
[424706773,1781066298000,-481.81250683,0.00016861,7]
[424706772,1781066298000,-460.15511799,0.00016443,2]
[424706774,1781066298000,-166.0,0.00017308,2]
[424706776,1781066298000,-775.00932722,0.00017308,2]
[424706777,1781066298000,-1743.77098624,0.00017308,2]
[424706778,1781066298000,-3096.93727156,0.00017308,2]
[424706779,1781066298000,-37.54072193,0.00017343,7]
[424706775,1781066298000,-193.7523318,0.00017308,2]
[424706780,1781066337000,-7551.733188,0.00016279,2]
[424706786,1781066681000,-1903.30551646,0.00016443,2]
[424706785,1781066681000,-877.35558683,0.00016443,2]
[424706784,1781066681000,-219.33889671,0.00016443,2]
[424706788,1781066703000,-187.72258773,0.00016947,2]
[424706787,1781066703000,-68.77050384,0.00016443,2]
[424706827,1781067032000,-1897.40411585,0.00017778,7]
[424706828,1781067032000,-265.38820339,0.00017778,7]
[424706822,1781067032000,-444.2717849,0.00017343,7]
[424706825,1781067032000,-379.4387698,0.00017376,2]
[424706824,1781067032000,-151.0,0.00017375,2]
[424706831,1781067032000,-336.13109446,0.00017778,7]
[424706821,1781067032000,-398.51158843,0.00017308,2]
[424706927,1781067038000,-226.567,0.00018878,2]
[424706936,1781067038000,-160.0,0.00019177,2]
[424706934,1781067038000,-296.30156913,0.000191,2]
[424706930,1781067038000,-151.0,0.00018978,2]
[424706945,1781067038000,-500.0,0.00019178,2]
[424706938,1781067038000,-417.15472785,0.00019177,2]
[424706932,1781067038000,-1513.3843462,0.00019003,2]
[424706943,1781067038000,-1511.99390481,0.00019178,2]
[424706941,1781067038000,-201.41069007,0.00019178,2]
[424706947,1781067038000,-160.4633169,0.00019178,2]
[424706948,1781067038000,-500.0,0.00019178,2]
[424706950,1781067038000,-500.0,0.00019178,2]
[424706952,1781067038000,-352.66814623,0.00019178,2]
[424706954,1781067038000,-500.0,0.00019178,2]
[424706968,1781067038000,-500.0,0.00019178,2]
[424706956,1781067038000,-481.13758393,0.00019178,2]
[424706958,1781067038000,-500.0,0.00019178,2]
[424706970,1781067038000,-500.0,0.00019178,2]
[424706939,1781067038000,-671.99729103,0.00019178,2]
[424706928,1781067038000,-163.5135005,0.000189,5]
[424706899,1781067038000,-156.0,0.00018142,2]
[424706923,1781067038000,-17578.41079828,0.00018778,2]
[424706894,1781067038000,-218.61066562,0.00018106,2]
[424706892,1781067038000,-481.81250687,0.00017985,7]
[424706885,1781067038000,-152.0,0.00016881,7]
[424706896,1781067038000,-151.0,0.00018142,2]
[424706886,1781067038000,-152.0,0.00016881,7]
[424706890,1781067038000,-211.43401756,0.00017778,7]
[424706888,1781067038000,-138.2199345,0.00017778,7]
[424706960,1781067038000,-500.0,0.00019178,2]
[424706897,1781067038000,-151.0,0.00018142,2]
[424706925,1781067038000,-1513.38434623,0.00018795,2]
[424706902,1781067038000,-166.0,0.00018142,2]
[424706906,1781067038000,-180.0,0.00018142,2]
[424706908,1781067038000,-500.0,0.00018289,2]
[424706901,1781067038000,-166.0,0.00018142,2]
[424706911,1781067038000,-4046.7655289,0.0001829,2]
[424706921,1781067038000,-35984.54428639,0.00018778,2]
[424706915,1781067038000,-423.96311482,0.00018328,7]
[424706913,1781067038000,-845.73607024,0.00018328,7]
[424706917,1781067038000,-152.0,0.00018394,7]
[424706919,1781067038000,-152.0,0.00018394,7]
[424706904,1781067038000,-180.0,0.00018142,2]
[424706966,1781067038000,-500.0,0.00019178,2]
[424706972,1781067038000,-500.0,0.00019178,2]
[424706962,1781067038000,-500.0,0.00019178,2]
[424707014,1781067038000,-36.83778204,0.00019178,2]
[424707022,1781067038000,-1662.47,0.00019178,2]
[424707024,1781067038000,-2685.30117495,0.00019178,2]
[424707028,1781067038000,-362.17670289,0.00019178,2]
[424707026,1781067038000,-351.42225442,0.00019178,2]
[424707029,1781067038000,-500.0,0.00019178,2]
[424707033,1781067038000,-500.0,0.00019178,2]
[424707031,1781067038000,-500.0,0.00019178,2]
[424707044,1781067038000,-697.86,0.00019178,2]
[424706964,1781067038000,-500.0,0.00019178,2]
[424707037,1781067038000,-717.26,0.00019178,2]
[424707039,1781067038000,-989.21,0.00019178,2]
[424707040,1781067038000,-1758.6,0.00019178,2]
[424707042,1781067038000,-188.22807357,0.00019178,2]
[424707046,1781067038000,-1440.68,0.00019178,2]
[424707048,1781067038000,-2472.54,0.00019178,2]
[424707052,1781067038000,-500.0,0.00019178,2]
[424707053,1781067038000,-1348.54076727,0.00019178,2]
[424707050,1781067038000,-500.0,0.00019178,2]
[424707016,1781067038000,-743.0,0.00019178,2]
[424707012,1781067038000,-463.16221796,0.00019178,2]
[424707035,1781067038000,-1157.26,0.00019178,2]
[424707020,1781067038000,-1307.12,0.00019178,2]
[424707010,1781067038000,-250.977024,0.00019178,2]
[424706974,1781067038000,-712.39,0.00019178,2]
[424706978,1781067038000,-641.85326759,0.00019178,2]
[424706976,1781067038000,-500.0,0.00019178,2]
[424706982,1781067038000,-500.0,0.00019178,2]
[424706980,1781067038000,-500.0,0.00019178,2]
[424706984,1781067038000,-321.75772107,0.00019178,2]
[424706994,1781067038000,-500.0,0.00019178,2]
[424706988,1781067038000,-511.81,0.00019178,2]
[424706986,1781067038000,-500.0,0.00019178,2]
[424706990,1781067038000,-567.80339022,0.00019178,2]
[424706996,1781067038000,-500.0,0.00019178,2]
[424706992,1781067038000,-500.0,0.00019178,2]
[424706997,1781067038000,-808.43,0.00019178,2]
[424706999,1781067038000,-1716.17,0.00019178,2]
[424707001,1781067038000,-418.62301565,0.00019178,2]
[424707004,1781067038000,-465.65698435,0.00019178,2]
[424707008,1781067038000,-151.0,0.00019178,2]
[424707006,1781067038000,-500.0,0.00019178,2]
[424707018,1781067038000,-10921.97,0.00019178,2]
[424707173,1781067040000,-3.4977044,0.00019178,2]
[424707174,1781067040000,-1284.31152833,0.00019178,2]
[424707175,1781067040000,-2539.67,0.00019178,2]
[424707177,1781067040000,-457.78627143,0.00019178,2]
[424707176,1781067040000,-573.2,0.00019178,2]
[424707201,1781067048000,-42.21372857,0.00019178,2]
[424707209,1781067048000,-500.0,0.00019178,2]
[424707208,1781067048000,-365.53733614,0.00019178,2]
[424707211,1781067048000,-504.48251842,0.00019178,2]
[424707210,1781067048000,-501.68,0.00019178,2]
[424707212,1781067048000,-500.0,0.00019178,2]
[424707203,1781067048000,-621.43,0.00019178,2]
[424707202,1781067048000,-500.0,0.00019178,2]
[424707204,1781067048000,-2056.38,0.00019178,2]
[424707207,1781067048000,-134.46266386,0.00019178,2]
[424707205,1781067048000,-500.0,0.00019178,2]
[424707214,1781067048000,-1172.54,0.00019178,2]
[424707213,1781067048000,-2748.35,0.00019178,2]
[424707216,1781067048000,-714.41,0.00019178,2]
[424707218,1781067048000,-517.5,0.00019178,2]
[424707219,1781067048000,-529.75222257,0.00019178,2]
[424707206,1781067048000,-589.59,0.00019178,2]
[424707217,1781067048000,-500.0,0.00019178,2]
[424707224,1781067729000,-2108.46529224,0.00015783,2]
[424710597,1781068539000,642.25308811,0.0002411,120]
[424710602,1781068929000,1647.60050261,7.6e-05,2]
[424710600,1781068929000,6039.53148096,7.6e-05,2]
[424710601,1781068929000,10000.0,7.6e-05,2]
[424710642,1781069432000,-401.75717176,0.00017308,2]
[424710641,1781069432000,-448.63044879,0.00016778,2]
[424710987,1781069443000,-176.82756227,0.00017308,2]
[424710988,1781069443000,-112.38457011,0.00017664,2]
[424711022,1781069446000,-160.150328,0.0001873,2]
[424711006,1781069446000,-152.0,0.00018241,7]
[424711005,1781069446000,-152.0,0.00018236,7]
[424711003,1781069446000,-152.0,0.00018094,7]
[424711007,1781069446000,-240.63344715,0.00018328,7]
[424711002,1781069446000,-182.1060847,0.00017979,2]
[424711004,1781069446000,-152.0,0.00018094,7]
[424710994,1781069446000,-235.239353,0.00017746,2]
[424710998,1781069446000,-151.0,0.00017979,2]
[424711001,1781069446000,-166.0,0.00017979,2]
[424710995,1781069446000,-1000.0,0.00017755,2]
[424710997,1781069446000,-172.33519618,0.000179,2]
[424710999,1781069446000,-202.52277129,0.00017979,2]
[424710991,1781069446000,-328.5358839,0.00017553,2]
[424710992,1781069446000,-39.61542989,0.00017664,2]
[424711019,1781069446000,-160.150328,0.0001873,2]
[424711000,1781069446000,-156.68593319,0.00017979,2]
[424711021,1781069446000,-160.150328,0.0001873,2]
[424711034,1781069446000,-160.150328,0.00018978,2]
[424711011,1781069446000,-152.0,0.00018646,2]
[424711033,1781069446000,-160.150328,0.00018978,2]
[424711035,1781069446000,-10551.91921139,0.00018978,2]
[424711031,1781069446000,-160.150328,0.00018978,2]
[424711027,1781069446000,-395.79657943,0.00018878,2]
[424711030,1781069446000,-264.699943,0.00018977,2]
[424711032,1781069446000,-160.150328,0.00018978,2]
[424711029,1781069446000,-908.03060772,0.00018904,2]
[424711017,1781069446000,-160.150328,0.0001873,2]
[424711025,1781069446000,-181.43790822,0.00018745,7]
[424711014,1781069446000,-504.2602919,0.00018721,2]
[424711015,1781069446000,-1104.4320326,0.0001873,2]
[424711016,1781069446000,-2060.9980921,0.0001873,2]
[424711013,1781069446000,-152.0,0.00018705,2]
[424711024,1781069446000,-500.0,0.0001873,2]
[424711009,1781069446000,-962.53378862,0.00018328,7]
[424711010,1781069446000,-557.16606542,0.00018328,7]
[424711012,1781069446000,-156.0,0.00018677,2]
[424711008,1781069446000,-576.09705849,0.00018328,7]
[424711036,1781069549000,1188.45,0.000241,30]
[424711045,1781070458000,10000.0,0.00017,120]
[424711047,1781070507000,10000.0,0.00015,90]
[424711049,1781070520000,10000.0,8.5e-05,60]
[424711051,1781070531000,10000.0,0.0002411,30]
[424711052,1781070543000,10000.0,0.00017,120]
[424711053,1781070551000,10000.0,0.00015,90]
[424711054,1781070573000,10000.0,0.0002411,30]
[424711085,1781070632000,-517.74712121,0.00013976,2]
[424711084,1781070632000,-654.74196905,0.00013294,2]
[424711082,1781070632000,-1565.15263,0.00013294,2]
[424711083,1781070632000,-2780.10540095,0.00013294,2]
[424711081,1781070632000,-5000.0,0.00013161,2]
[424711115,1781070641000,-500.0,0.00013976,2]
[424711114,1781070641000,-500.0,0.00013976,2]
[424711113,1781070641000,-500.0,0.00013976,2]
[424711116,1781070641000,-500.0,0.00013976,2]
[424711117,1781070641000,-500.0,0.00013976,2]
[424711104,1781070641000,-519.96723564,0.00013976,2]
[424711102,1781070641000,-359.20790975,0.00013836,2]
[424711103,1781070641000,-42.36803779,0.00013976,2]
[424711105,1781070641000,-500.69312639,0.00013976,2]
[424711106,1781070641000,-496.97216789,0.00013976,2]
[424711121,1781070641000,-611.4710224,0.00013976,2]
[424711107,1781070641000,-500.0,0.00013976,2]
[424711110,1781070641000,-500.0,0.00013976,2]
[424711109,1781070641000,-500.0,0.00013976,2]
[424711111,1781070641000,-500.0,0.00013976,2]
[424711112,1781070641000,-500.0,0.00013976,2]
[424711118,1781070641000,-500.0,0.00013976,2]
[424711122,1781070641000,-95.77516257,0.00013976,2]
[424711120,1781070641000,-500.0,0.00013976,2]
[424711119,1781070641000,-500.0,0.00013976,2]
[424711108,1781070641000,-184.41647683,0.00013976,2]
[424711136,1781070646000,-207.4708802,0.0001377,2]
[424711140,1781070646000,-500.0,0.00013976,2]
[424711142,1781070646000,-500.0,0.00013976,2]
[424711143,1781070646000,-500.0,0.00013976,2]
[424711145,1781070646000,-500.0,0.00013976,2]
[424711141,1781070646000,-500.0,0.00013976,2]
[424711144,1781070646000,-500.0,0.00013976,2]
[424711137,1781070646000,-404.22483743,0.00013976,2]
[424711139,1781070646000,-500.0,0.00013976,2]
[424711146,1781070646000,-500.0,0.00013976,2]
[424711138,1781070646000,-500.0,0.00013976,2]
[424711154,1781070646000,-215.281314,0.00013976,2]
[424711157,1781070646000,-500.0,0.00013978,2]
[424711153,1781070646000,-500.0,0.00013976,2]
[424711156,1781070646000,-185.2899601,0.00013978,2]
[424711158,1781070646000,-20918.91433998,0.00013979,9]
[424711160,1781070646000,-4696.0,0.00013979,9]
[424711149,1781070646000,-500.0,0.00013976,2]
[424711148,1781070646000,-500.0,0.00013976,2]
[424711150,1781070646000,-500.0,0.00013976,2]
[424711151,1781070646000,-500.0,0.00013976,2]
[424711147,1781070646000,-500.0,0.00013976,2]
[424711165,1781070649000,10000.0,0.0002411,30]
[424711166,1781070660000,10000.0,0.0002411,30]
[424711167,1781070670000,10000.0,8.5e-05,60]
[424711168,1781070678000,10000.0,0.00015,90]
[424711169,1781070690000,10000.0,0.00017,120]
[424711170,1781070714000,10000.0,0.00017,120]
[424711172,1781070723000,10000.0,0.00015,90]
[424711173,1781070731000,10000.0,8.5e-05,60]
[424711174,1781070739000,10000.0,0.0002411,30]
[424711175,1781070754000,10000.0,0.0002411,30]
[424711176,1781070765000,10000.0,0.00017,120]
[424711177,1781070774000,10000.0,0.00015,90]
[424711178,1781070781000,10000.0,8.5e-05,60]
[424711179,1781070789000,10000.0,0.0002411,30]
[424711180,1781070797000,10000.0,0.0002411,30]
[424711181,1781070805000,10000.0,8.5e-05,60]
[424711182,1781070816000,10000.0,0.00017,120]
[424711185,1781071311000,-1164.11361305,0.00013724,2]
[424711194,1781071832000,-1947.77937604,0.0001292,2]
[424711193,1781071832000,-467.09929999,0.0001292,2]
[424711195,1781071832000,-272.20961305,0.00013051,2]
[424711197,1781071832000,-5878.1939526,0.00013863,2]
[424711198,1781071832000,-381.03996775,0.00013863,2]
[424711196,1781071832000,-752.0688778,0.00013316,2]
[424711228,1781071833000,-300.0,0.00014993,2]
[424711232,1781071833000,-300.0,0.00014993,2]
[424711235,1781071833000,-300.0,0.00014993,2]
[424711234,1781071833000,-300.0,0.00014993,2]
[424711231,1781071833000,-300.0,0.00014993,2]
[424711237,1781071833000,-300.0,0.00014993,2]
[424711230,1781071833000,-300.0,0.00014993,2]
[424711233,1781071833000,-300.0,0.00014993,2]
[424711242,1781071833000,-300.0,0.00014993,2]
[424711241,1781071833000,-300.0,0.00014993,2]
[424711239,1781071833000,-300.0,0.00014993,2]
[424711244,1781071833000,-300.0,0.00014993,2]
[424711262,1781071833000,-193.32,0.00015499,2]
[424711246,1781071833000,-151.0,0.00014993,2]
[424711258,1781071833000,-600.0,0.00015292,2]
[424711257,1781071833000,-172.18,0.00015199,2]
[424711261,1781071833000,-175.70548,0.00015292,2]
[424711221,1781071833000,-500.0,0.00014991,2]
[424711256,1781071833000,-500.0,0.00015192,2]
[424711259,1781071833000,-151.0,0.00015292,2]
[424711229,1781071833000,-300.0,0.00014993,2]
[424711223,1781071833000,-500.0,0.00014992,2]
[424711209,1781071833000,-437.2165176,0.00014098,2]
[424711220,1781071833000,-151.0,0.00014839,2]
[424711260,1781071833000,-151.0,0.00015292,2]
[424711199,1781071833000,-1953.17838975,0.00013863,2]
[424711201,1781071833000,-511.14710224,0.00013978,2]
[424711205,1781071833000,-151.0,0.00013979,2]
[424711203,1781071833000,-500.0,0.00013978,2]
[424711200,1781071833000,-503.78418059,0.00013978,2]
[424711207,1781071833000,-151.0,0.00013979,2]
[424711206,1781071833000,-151.0,0.00013979,2]
[424711208,1781071833000,-152.0,0.00014047,2]
[424711204,1781071833000,-2616.22600167,0.00013979,9]
[424711222,1781071833000,-593.96599868,0.00014992,2]
[424711210,1781071833000,-786.20274195,0.00014098,2]
[424711212,1781071833000,-182.62359829,0.00014098,2]
[424711214,1781071833000,-730.49439315,0.00014098,2]
[424711224,1781071833000,-500.0,0.00014992,2]
[424711226,1781071833000,-300.0,0.00014993,2]
[424711227,1781071833000,-300.0,0.00014993,2]
[424711225,1781071833000,-500.0,0.00014992,2]
[424711217,1781071833000,-242.0,0.000147,2]
[424711219,1781071833000,-151.0,0.00014839,2]
[424711216,1781071833000,-1641.9687722,0.00014098,2]
[424711218,1781071833000,-151.0,0.00014839,2]
[424711202,1781071833000,-500.0,0.00013978,2]
[424711245,1781071833000,-151.0,0.00014993,2]
[424711265,1781071833000,-1100.10514528,0.00016,4]
[424711252,1781071833000,-151.0,0.00014993,2]
[424711308,1781071833000,-154.50690291,0.00018218,2]
[424711310,1781071833000,-500.0,0.00018218,2]
[424711316,1781071833000,-500.0,0.00018327,2]
[424711313,1781071833000,-195.952,0.00018304,2]
[424711318,1781071833000,-430.44825097,0.00018328,7]
[424711315,1781071833000,-506.87508913,0.00018327,2]
[424711248,1781071833000,-151.0,0.00014993,2]
[424711320,1781071833000,-1721.7930039,0.00018328,7]
[424711324,1781071833000,-128.26108719,0.00018328,7]
[424711325,1781071833000,-186.0,0.00018412,2]
[424711327,1781071833000,-151.0,0.00018486,2]
[424711341,1781071833000,-154.41233293,0.0001873,2]
[424711343,1781071833000,-235.18674677,0.0001873,2]
[424711345,1781071833000,-419.67180884,0.0001873,2]
[424711329,1781071833000,-211.746292,0.00018486,2]
[424711334,1781071833000,-346.32200694,0.00018722,2]
[424711331,1781071833000,-199.49204191,0.00018503,2]
[424711338,1781071833000,-609.80168888,0.0001873,2]
[424711333,1781071833000,-664.50795809,0.00018503,2]
[424711336,1781071833000,-152.45042222,0.0001873,2]
[424711339,1781071833000,-278.41884417,0.0001873,2]
[424711311,1781071833000,-515.82430434,0.00018301,2]
[424711305,1781071833000,-503.00471781,0.00018218,2]
[424711322,1781071833000,-238.59668395,0.00018328,7]
[424711303,1781071833000,-245.754128,0.0001811,2]
[424711250,1781071833000,-151.0,0.00014993,2]
[424711254,1781071833000,-346.32200701,0.00015192,2]
[424711306,1781071833000,-500.0,0.00018218,2]
[424711267,1781071833000,-422.84924608,0.00016443,2]
[424711264,1781071833000,-150.02270257,0.00016,4]
[424711271,1781071833000,-376.91603128,0.00016443,2]
[424711277,1781071833000,-328.671,0.00016547,2]
[424711275,1781071833000,-383.45148302,0.00016443,2]
[424711279,1781071833000,-151.0,0.00016547,2]
[424711288,1781071833000,-151.0,0.00016821,2]
[424711263,1781071833000,-707.6421143,0.0001598,2]
[424711292,1781071833000,-385.16999941,0.00016904,2]
[424711294,1781071833000,-837.82104743,0.00017034,2]
[424711285,1781071833000,-720.0,0.00016821,2]
[424711283,1781071833000,-245.754128,0.00016704,2]
[424711296,1781071833000,-151.0,0.00017308,2]
[424711299,1781071833000,-245.754128,0.00017407,2]
[424711287,1781071833000,-151.0,0.00016821,2]
[424711281,1781071833000,-151.0,0.00016547,2]
[424711297,1781071833000,-151.0,0.00017308,2]
[424711301,1781071833000,-900.09440611,0.00018087,2]
[424711290,1781071833000,-160.42512702,0.00016904,2]
[424711361,1781071839000,-12109.70399529,0.00018735,2]
[424711360,1781071839000,-291.74886881,0.00018735,2]
[424711359,1781071839000,-717.19524437,0.0001873,2]
[424711369,1781071844000,-2765.68755009,0.00018735,2]
[424711381,1781071847000,-5450.8186186,0.00018735,2]
[424711380,1781071847000,-1974.63957015,0.00018735,2]
[424711426,1781073031000,-727.09505955,0.00016746,2]
[424711425,1781073031000,-167.90523358,0.00016745,2]
[424711423,1781073031000,-604.08939115,0.000149,2]
[424711421,1781073031000,-9275.59723782,0.0001,2]
[424711420,1781073031000,-1543.13028429,9.9e-05,2]
[424711442,1781073038000,-52.70724373,0.00016746,2]
[424711443,1781073038000,-3116.15892585,0.00016746,2]
[424711441,1781073038000,-811.51114452,0.00016746,2]
[424711466,1781073046000,-2079.69998992,0.00016746,2]
[424711465,1781073046000,-368.1946,0.00016746,2]
[424711473,1781073046000,-144043.46417086,0.00018128,2]
[424711468,1781073046000,-1828.7495914,0.00016746,2]
[424711469,1781073046000,-2436.76754876,0.00016896,2]
[424711467,1781073046000,-6460.87210653,0.00016746,2]
[424711470,1781073046000,-500.65276558,0.00016896,2]
[424711472,1781073046000,-4933.98164379,0.0001809,2]
[424711471,1781073046000,-433.49410275,0.0001805,2]
[424711484,1781073855000,214.0,0.0002411,30]
[424711546,1781074232000,-697.03980434,0.00015925,2]
[424711544,1781074232000,-465.47474215,0.00015925,2]
[424711560,1781074232000,-2960.34618427,0.00015925,2]
[424711555,1781074232000,-877.13926924,0.00015925,2]
[424711562,1781074232000,-500.0,0.00016745,2]
[424711563,1781074232000,-105.47252248,0.00018127,2]
[424711669,1781074238000,-300.0,0.00018875,2]
[424711667,1781074238000,-186.0,0.00018726,2]
[424711668,1781074238000,-517.30098393,0.00018867,2]
[424711666,1781074238000,-152.0,0.00018333,7]
[424711665,1781074238000,-152.0,0.00018333,7]
[424711672,1781074238000,-500.0,0.00018875,2]
[424711670,1781074238000,-500.0,0.00018875,2]
[424711671,1781074238000,-534.86902104,0.00018875,2]
[424711663,1781074238000,-308.21945307,0.00018127,2]
[424711673,1781074238000,-500.0,0.00018875,2]
[424711664,1781074238000,-742.03987193,0.00018218,2]
[424711674,1781074238000,-500.0,0.00018875,2]
[424711662,1781074238000,-394.52747752,0.00018127,2]
[424711677,1781074238000,-500.0,0.00018875,2]
[424711687,1781074238000,-17947.16581905,0.00018878,2]
[424711681,1781074238000,-500.0,0.00018875,2]
[424711683,1781074238000,-218.70155543,0.00018875,2]
[424711679,1781074238000,-500.0,0.00018875,2]
[424711682,1781074238000,-500.0,0.00018875,2]
[424711686,1781074238000,-206.62266074,0.00018877,2]
[424711680,1781074238000,-419.76523447,0.00018875,2]
[424711685,1781074238000,-500.0,0.00018875,2]
[424711678,1781074238000,-500.0,0.00018875,2]
[424711675,1781074238000,-500.0,0.00018875,2]
[424711684,1781074238000,-500.0,0.00018875,2]
[424711676,1781074238000,-500.0,0.00018875,2]
[424711713,1781074243000,-30084.81703849,0.00018878,2]
[424711711,1781074243000,-1068.60977253,0.00018878,2]
[424711712,1781074243000,-13968.27331962,0.00018878,2]
[424711710,1781074243000,-3428.19821707,0.00018878,2]
[424711708,1781074243000,-3215.89712044,0.00018878,2]
[424711709,1781074243000,-1164.14458316,0.00018878,2]
[424711707,1781074243000,-11254.0,0.00018878,2]
[424711720,1781074246000,-500.0,0.00018875,2]
[424711719,1781074246000,-500.0,0.00018875,2]
[424711721,1781074246000,-18021.23941191,0.00018878,2]
[424711723,1781074246000,-30636.2481402,0.00018878,2]
[424711722,1781074246000,-10695.5512453,0.00018878,2]
[424711727,1781074703000,170.95309786,0.000241,30]
[424711729,1781074930000,-500.0,0.00016269,2]
[424711730,1781074947000,-500.0,0.00015995,2]
[424711731,1781074963000,-799.823,0.00015995,2]
[424711734,1781075066000,211.52,9.2e-05,2]
[424711733,1781075066000,211.51,9.2e-05,2]
[424711811,1781075438000,-300.0,0.00017397,2]
[424711812,1781075438000,-300.0,0.00017397,2]
[424711806,1781075438000,-300.0,0.00017397,2]
[424711810,1781075438000,-300.0,0.00017397,2]
[424711808,1781075438000,-300.0,0.00017397,2]
[424711809,1781075438000,-300.0,0.00017397,2]
[424711817,1781075438000,-300.0,0.00017397,2]
[424711815,1781075438000,-300.0,0.00017397,2]
[424711814,1781075438000,-300.0,0.00017397,2]
[424711816,1781075438000,-300.0,0.00017397,2]
[424711807,1781075438000,-300.0,0.00017397,2]
[424711821,1781075438000,-153.82,0.00017556,2]
[424711813,1781075438000,-300.0,0.00017397,2]
[424711805,1781075438000,-300.0,0.00017397,2]
[424711827,1781075438000,-153.82,0.00018056,2]
[424711802,1781075438000,-500.0,0.00017056,2]
[424711803,1781075438000,-12226.1435817,0.00017057,2]
[424711800,1781075438000,-500.0,0.00017056,2]
[424711796,1781075438000,-285.9,0.00016389,7]
[424711797,1781075438000,-464.90917535,0.0001698,2]
[424711801,1781075438000,-505.69080099,0.00017056,2]
[424711795,1781075438000,-200.0,0.00016389,2]
[424711793,1781075438000,-799.823,0.00014077,2]
[424711799,1781075438000,-500.0,0.00017056,2]
[424711798,1781075438000,-300.0,0.00017055,2]
[424711792,1781075438000,-3397.99788331,0.00013936,2]
[424711794,1781075438000,-293.203246,0.00015545,2]
[424711791,1781075438000,-1602.00211669,0.00013936,2]
[424711824,1781075438000,-153.82,0.00017756,2]
[424711804,1781075438000,-222.7185357,0.00017239,2]
[424711818,1781075438000,-300.0,0.00017397,2]
[424711842,1781075438000,-50.17737214,0.00018427,2]
[424711823,1781075438000,-600.0,0.00017744,2]
[424711820,1781075438000,-153.82,0.00017456,2]
[424711852,1781075438000,-2923.86707462,0.00018578,2]
[424711850,1781075438000,-153.82,0.00018556,2]
[424711848,1781075438000,-152.0,0.00018483,2]
[424711849,1781075438000,-152.0,0.00018525,2]
[424711846,1781075438000,-22464.1910273,0.00018428,2]
[424711845,1781075438000,-4300.8821362,0.00018428,2]
[424711843,1781075438000,-449.82262786,0.00018427,2]
[424711844,1781075438000,-447.88837431,0.00018427,2]
[424711853,1781075438000,-46102.93625748,0.00018578,2]
[424711840,1781075438000,-426.164,0.00018427,2]
[424711841,1781075438000,-189.27926138,0.00018427,2]
[424711838,1781075438000,-153.82,0.00018356,2]
[424711834,1781075438000,-152.0,0.00018328,7]
[424711847,1781075438000,-153.82,0.00018456,2]
[424711836,1781075438000,-2095.17140309,0.00018333,7]
[424711822,1781075438000,-153.82,0.00017656,2]
[424711825,1781075438000,-153.82,0.00017856,2]
[424711826,1781075438000,-153.82,0.00017956,2]
[424711851,1781075438000,-33875.16315781,0.00018578,2]
[424711819,1781075438000,-300.0,0.00017397,2]
[424711828,1781075438000,-153.82,0.00018156,2]
[424711829,1781075438000,-186.134,0.00018236,2]
[424711831,1781075438000,-259.74150524,0.00018239,2]
[424711833,1781075438000,-152.0,0.00018328,7]
[424711837,1781075438000,-152.0,0.00018339,7]
[424711832,1781075438000,-153.82,0.00018256,2]